fUSD/lending_fUSD_20240814
["ID","MTS","AMOUNT","RATE_DAILY","PERIOD"]
[334950402,1723669843880,-500.0,0.00013972,2]
[334950404,1723669843890,-731.21,0.00013972,2]
[334950406,1723669843899,-151.0,0.00013972,2]
[334950408,1723669843908,-151.0,0.00013972,2]
[334950410,1723669843918,-500.0,0.00013972,2]
[334950412,1723669843927,-660.59,0.00013972,2]
[334950414,1723669843937,-946.97,0.00013972,2]
[334950416,1723669843946,-500.0,0.00013972,2]
[334950417,1723669843955,-384.690137,0.00013972,2]
[334950418,1723669843964,-500.0,0.00013972,2]
[334950419,1723669843974,-500.0,0.00013972,2]
[334950420,1723669843983,-384.690137,0.00013972,2]
[334950421,1723669843992,-500.0,0.00013972,2]
[334950422,1723669844002,-556.24212706,0.00013972,2]
[334950423,1723669844011,-151.0,0.00013972,2]
[334950424,1723669844021,-186.34595,0.00013972,2]
[334950425,1723669844030,-500.0,0.00013972,2]
[334950426,1723669844039,-500.0,0.00013972,2]
[334950428,1723669844049,-2144.199459,0.00013972,2]
[334950429,1723669844060,-526.81,0.00013972,2]
[334950430,1723669844070,-2144.199459,0.00013972,2]
[334950431,1723669844079,-500.0,0.00013972,2]
[334950433,1723669844088,-500.0,0.00013972,2]
[334950435,1723669844097,-500.0,0.00013972,2]
[334950437,1723669844106,-333.962182,0.00013972,2]
[334950439,1723669844115,-333.962182,0.00013972,2]
[334950441,1723669844124,-500.0,0.00013972,2]
[334950443,1723669844134,-500.0,0.00013972,2]
[334950445,1723669844143,-333.962182,0.00013972,2]
[334950447,1723669844152,-333.962182,0.00013972,2]
[334950449,1723669844161,-392.045528,0.00013972,2]
[334950451,1723669844170,-500.0,0.00013972,2]
[334950453,1723669844179,-500.0,0.00013972,2]
[334950455,1723669844189,-392.045528,0.00013972,2]
[334950457,1723669844198,-3705.435311,0.00013972,2]
[334950459,1723669844207,-274.74204233,0.00013972,2]
[334950461,1723669844215,-500.0,0.00013972,2]
[334950463,1723669844225,-3705.435311,0.00013972,2]
[334950465,1723669844234,-500.0,0.00013972,2]
[334950467,1723669844243,-547.33932325,0.00013972,2]
[334950469,1723669844252,-500.0,0.00013972,2]
[334950471,1723669844261,-500.0,0.00013972,2]
[334950473,1723669844271,-500.0,0.00013972,2]
[334950475,1723669844280,-500.0,0.00013972,2]
[334950477,1723669844289,-500.0,0.00013972,2]
[334950479,1723669844300,-500.0,0.00013972,2]
[334950481,1723669844309,-500.0,0.00013972,2]
[334950483,1723669844318,-500.0,0.00013972,2]
[334950485,1723669844328,-500.0,0.00013972,2]
[334950487,1723669844337,-500.0,0.00013972,2]
[334950489,1723669844346,-500.0,0.00013972,2]
[334950491,1723669844356,-151.0,0.00013972,2]
[334950493,1723669844365,-500.0,0.00013972,2]
[334950495,1723669844374,-151.0,0.00013972,2]
[334950497,1723669844384,-500.0,0.00013972,2]
[334950499,1723669844393,-500.0,0.00013972,2]
[334950501,1723669844403,-913.16,0.00013972,2]
[334950503,1723669844413,-151.0,0.00013972,2]
[334950505,1723669844422,-620.57,0.00013972,2]
[334950507,1723669844431,-1492.587303,0.00013972,2]
[334950509,1723669844440,-394.154218,0.00013972,2]
[334950511,1723669844449,-153.73252277,0.00013972,2]
[334950514,1723669844465,-151.0,0.00013972,2]
[334950515,1723669844474,-1492.587303,0.00013972,2]
[334950517,1723669844483,-500.0,0.00013972,2]
[334950519,1723669844494,-394.154218,0.00013972,2]
[334950521,1723669844503,-151.0,0.00013972,2]
[334950523,1723669844512,-500.0,0.00013972,2]
[334950525,1723669844521,-553.78,0.00013972,2]
[334950527,1723669844531,-151.0,0.00013972,2]
[334950529,1723669844544,-500.0,0.00013972,2]
[334950531,1723669844555,-500.0,0.00013972,2]
[334950533,1723669844567,-500.0,0.00013972,2]
[334950535,1723669844578,-500.0,0.00013972,2]
[334950537,1723669844588,-500.0,0.00013972,2]
[334950539,1723669844598,-252.298431,0.00013972,2]
[334950541,1723669844608,-500.0,0.00013972,2]
[334950543,1723669844618,-500.0,0.00013972,2]
[334950545,1723669844627,-500.0,0.00013972,2]
[334950547,1723669844638,-500.0,0.00013972,2]
[334950549,1723669844648,-252.298431,0.00013972,2]
[334950551,1723669844659,-500.0,0.00013972,2]
[334950553,1723669844669,-500.0,0.00013972,2]
[334950555,1723669844679,-500.0,0.00013972,2]
[334950557,1723669844688,-500.0,0.00013972,2]
[334950559,1723669844697,-500.0,0.00013972,2]
[334950561,1723669844707,-500.0,0.00013972,2]
[334950563,1723669844716,-500.0,0.00013972,2]
[334950565,1723669844725,-280.95171899,0.00013972,2]
[334950567,1723669844735,-500.0,0.00013972,2]
[334950569,1723669844746,-500.0,0.00013972,2]
[334950570,1723669844755,-1362.25,0.00013972,2]
[334950572,1723669844765,-500.0,0.00013972,2]
[334950574,1723669844774,-296.04552787,0.00013972,2]
[334950576,1723669844783,-500.0,0.00013972,2]
[334950578,1723669844793,-457.82712509,0.00013972,2]
[334950579,1723669844803,-536.32,0.00013972,2]
[334950580,1723669844812,-590.65,0.00013972,2]
[334950581,1723669844822,-519.68,0.00013972,2]
[334950582,1723669844831,-453.62695904,0.00013972,2]
[334950583,1723669844841,-770.13,0.00013972,2]
[334950584,1723669844850,-462.12146656,0.00013972,2]
[334950585,1723669844859,-500.0,0.00013972,2]
[334950586,1723669844869,-552.54,0.00013972,2]
[334950587,1723669844878,-500.0,0.00013972,2]
[334950588,1723669844887,-1228.2,0.00013972,2]
[334950589,1723669844896,-500.0,0.00013972,2]
[334950590,1723669844907,-476.086178,0.00013972,2]
[334950591,1723669844916,-500.0,0.00013972,2]
[334950592,1723669844926,-500.0,0.00013972,2]
[334950593,1723669844935,-476.086178,0.00013972,2]
[334950594,1723669844945,-500.0,0.00013972,2]
[334950595,1723669844955,-500.0,0.00013972,2]
[334950596,1723669844964,-642.62199632,0.00013972,2]
[334950601,1723669845066,-10000.0,0.00013972,2]
[334950603,1723669845077,-500.0,0.00013972,2]
[334950605,1723669845087,-1645.14,0.00013972,2]
[334950607,1723669845097,-500.0,0.00013972,2]
[334950609,1723669845107,-10000.0,0.00013972,2]
[334950611,1723669845116,-500.0,0.00013972,2]
[334950613,1723669845125,-500.0,0.00013972,2]
[334950615,1723669845135,-500.0,0.00013972,2]
[334950617,1723669845145,-1283.69485822,0.00013972,2]
[334950620,1723669845516,-8716.30514178,0.00013972,2]
[334950621,1723669845526,-151.0,0.00013972,2]
[334950622,1723669845537,-151.0,0.00013972,2]
[334950623,1723669845547,-2273.69164915,0.00013972,2]
[334950624,1723669845568,-1208.05733236,0.00013972,2]
[334950625,1723669845580,-6518.25101849,0.00013972,2]
[334950626,1723669845589,-500.0,0.00013972,2]
[334950627,1723669845599,-500.0,0.00013972,2]
[334950628,1723669845608,-500.0,0.00013972,2]
[334950629,1723669845617,-500.0,0.00013972,2]
[334950630,1723669845627,-198.385566,0.00013972,2]
[334950631,1723669845637,-500.0,0.00013972,2]
[334950632,1723669845647,-1471.98,0.00013972,2]
[334950633,1723669845656,-500.0,0.00013972,2]
[334950634,1723669845666,-198.385566,0.00013972,2]
[334950635,1723669845675,-500.0,0.00013972,2]
[334950636,1723669845685,-500.0,0.00013972,2]
[334950637,1723669845695,-151.0,0.00013972,2]
[334950638,1723669845704,-500.0,0.00013972,2]
[334950639,1723669845714,-500.0,0.00013972,2]
[334950640,1723669845724,-500.0,0.00013972,2]
[334950641,1723669845734,-500.0,0.00013972,2]
[334950642,1723669845743,-500.0,0.00013972,2]
[334950643,1723669845752,-279.274672,0.00013972,2]
[334950644,1723669845762,-781.33,0.00013972,2]
[334950645,1723669845771,-1181.83,0.00013972,2]
[334950646,1723669845781,-475.074164,0.00013972,2]
[334950647,1723669845790,-500.0,0.00013972,2]
[334950648,1723669845800,-500.0,0.00013972,2]
[334950649,1723669845809,-959.15,0.00013972,2]
[334950650,1723669845819,-500.0,0.00013972,2]
[334950651,1723669845828,-475.074164,0.00013972,2]
[334950652,1723669845838,-500.0,0.00013972,2]
[334950653,1723669845847,-500.0,0.00013972,2]
[334950654,1723669845857,-500.0,0.00013972,2]
[334950655,1723669845866,-500.0,0.00013972,2]
[334950656,1723669845876,-500.0,0.00013972,2]
[334950657,1723669845886,-151.0,0.00013972,2]
[334950658,1723669845895,-500.0,0.00013972,2]
[334950659,1723669845904,-1231.21,0.00013972,2]
[334950660,1723669845914,-227.2146916,0.00013972,2]
[334950661,1723669845927,-272.7853084,0.00013972,2]
[334950662,1723669845936,-305.37419817,0.00013972,2]
[334950663,1723669845945,-500.0,0.00013972,2]
[334950664,1723669845955,-151.0,0.00013972,2]
[334950665,1723669845964,-500.0,0.00013972,2]
[334950666,1723669845974,-500.0,0.00013972,2]
[334950667,1723669845983,-151.0,0.00013972,2]
[334950668,1723669845992,-500.0,0.00013972,2]
[334950669,1723669846002,-500.0,0.00013972,2]
[334950670,1723669846011,-500.0,0.00013972,2]
[334950671,1723669846020,-500.0,0.00013972,2]
[334950672,1723669846030,-1000.0,0.00013972,2]
[334950673,1723669846039,-500.0,0.00013972,2]
[334950674,1723669846050,-500.0,0.00013972,2]
[334950675,1723669846060,-261.81121655,0.00013972,2]
[334950676,1723669846069,-500.0,0.00013972,2]
[334950677,1723669846078,-261.07554512,0.00013972,2]
[334950678,1723669846088,-500.0,0.00013972,2]
[334950679,1723669846100,-500.0,0.00013972,2]
[334950680,1723669846110,-346.24673362,0.00013972,2]
[334950681,1723669846120,-500.0,0.00013972,2]
[334950682,1723669846130,-302.64679744,0.00013972,2]
[334950683,1723669846140,-652.47,0.00013972,2]
[334950684,1723669846150,-553.27,0.00013972,2]
[334950685,1723669846160,-560.76951142,0.00013972,2]
[334950686,1723669846169,-946.82,0.00013972,2]
[334950687,1723669846179,-562.50505529,0.00013972,2]
[334950688,1723669846189,-500.0,0.00013972,2]
[334950689,1723669846199,-151.0,0.00013972,2]
[334950690,1723669846209,-500.0,0.00013972,2]
[334950691,1723669846218,-500.0,0.00013972,2]
[334950692,1723669846227,-384.559042,0.00013972,2]
[334950693,1723669846237,-500.0,0.00013972,2]
[334950694,1723669846351,-500.0,0.00013972,2]
[334950695,1723669846361,-500.0,0.00013972,2]
[334950696,1723669846371,-500.0,0.00013972,2]
[334950697,1723669846380,-151.0,0.00013972,2]
[334950698,1723669846390,-641.27,0.00013972,2]
[334950699,1723669846399,-500.0,0.00013972,2]
[334950700,1723669846408,-384.559042,0.00013972,2]
[334950701,1723669846418,-443.02245533,0.00013972,2]
[334950702,1723669846427,-500.0,0.00013972,2]
[334950703,1723669846436,-368.39813216,0.00013972,2]
[334950711,1723669846518,-131.60186784,0.00013972,2]
[334950713,1723669846528,-408.8548099,0.00013972,2]
[334950715,1723669846542,-91.1451901,0.00013972,2]
[334950717,1723669846552,-500.0,0.00013972,2]
[334950719,1723669846563,-500.0,0.00013972,2]
[334950721,1723669846572,-500.0,0.00013972,2]
[334950723,1723669846582,-500.0,0.00013972,2]
[334950725,1723669846591,-77.20480995,0.00013972,2]
[334950727,1723669846604,-422.79519005,0.00013972,2]
[334950729,1723669846614,-1576.66,0.00013972,2]
[334950731,1723669846624,-500.0,0.00013972,2]
[334950733,1723669846635,-500.0,0.00013972,2]
[334950735,1723669846644,-427.36929304,0.00013972,2]
[334950737,1723669846653,-520.98,0.00013972,2]
[334950739,1723669846663,-500.0,0.00013972,2]
[334950741,1723669846673,-2066.517033,0.00013972,2]
[334950743,1723669846682,-372.339468,0.00013972,2]
[334950745,1723669846691,-512.18,0.00013972,2]
[334950747,1723669846701,-2066.517033,0.00013972,2]
[334950749,1723669846711,-372.339468,0.00013972,2]
[334950751,1723669846721,-500.0,0.00013972,2]
[334950753,1723669846730,-500.0,0.00013972,2]
[334950755,1723669846740,-500.0,0.00013972,2]
[334950757,1723669846749,-500.0,0.00013972,2]
[334950759,1723669846759,-500.0,0.00013972,2]
[334950761,1723669846768,-500.0,0.00013972,2]
[334950763,1723669846777,-500.0,0.00013972,2]
[334950765,1723669846787,-573.86,0.00013972,2]
[334950767,1723669846796,-500.0,0.00013972,2]
[334950769,1723669846807,-500.0,0.00013972,2]
[334950771,1723669846817,-500.0,0.00013972,2]
[334950773,1723669846827,-500.0,0.00013972,2]
[334950774,1723669846837,-500.0,0.00013972,2]
[334950776,1723669846847,-500.0,0.00013972,2]
[334950778,1723669846856,-500.0,0.00013972,2]
[334950780,1723669846865,-283.517932,0.00013972,2]
[334950782,1723669846875,-500.0,0.00013972,2]
[334950784,1723669846885,-500.0,0.00013972,2]
[334950786,1723669846894,-500.0,0.00013972,2]
[334950788,1723669846904,-500.0,0.00013972,2]
[334950790,1723669846914,-500.0,0.00013972,2]
[334950792,1723669846924,-283.517932,0.00013972,2]
[334950794,1723669846934,-1323.14888746,0.00013972,2]
[334950796,1723669846945,-2430.53542353,0.00013972,2]
[334950798,1723669846957,-100.43129301,0.00013972,2]
[334950799,1723669846967,-500.0,0.00013972,2]
[334950800,1723669846976,-291.0828335,0.00013972,2]
[334950801,1723669846992,-253.9171665,0.00013972,2]
[334950802,1723669847001,-1142.77329354,0.00013972,2]
[334950803,1723669847013,-2711.34231046,0.00013972,2]
[334950804,1723669847022,-1702.012306,0.00013972,2]
[334950805,1723669847031,-160.69,0.00013973,2]
[334950806,1723669847041,-583.21,0.00013973,2]
[334950807,1723669847052,-650.0,0.00014,2]
[334950808,1723669847069,-283.517932,0.00014025,2]
[334950809,1723669847078,-283.517932,0.00014025,2]
[334950810,1723669847087,-3854.115604,0.00014025,2]
[334950811,1723669847096,-3854.115604,0.00014025,2]
[334950812,1723669847105,-800.0,0.00014025,2]
[334950814,1723669847114,-364.32934525,0.00014081,2]
[334950815,1723669847123,-42234.4358983,0.00014084,2]
[334950817,1723669847132,-151.0,0.0001409,2]
[334950819,1723669847141,-151.0,0.0001409,2]
[334950821,1723669847150,-151.0,0.00014094,2]
[334950823,1723669847160,-1678.004423,0.00014094,2]
[334950825,1723669847169,-1678.004423,0.00014094,2]
[334950827,1723669847179,-205.65466,0.00014094,2]
[334950829,1723669847188,-273.624296,0.00014094,2]
[334950831,1723669847197,-205.65466,0.00014094,2]
[334950833,1723669847207,-273.624296,0.00014094,2]
[334950835,1723669847216,-215.020153,0.00014094,2]
[334950837,1723669847225,-215.020153,0.00014094,2]
[334950839,1723669847234,-384.690137,0.00014094,2]
[334950840,1723669847243,-384.690137,0.00014094,2]
[334950842,1723669847253,-2144.199459,0.00014094,2]
[334950844,1723669847263,-2144.199459,0.00014094,2]
[334950846,1723669847272,-392.045528,0.00014094,2]
[334950848,1723669847283,-392.045528,0.00014094,2]
[334950850,1723669847293,-3705.435311,0.00014094,2]
[334950852,1723669847303,-3705.435311,0.00014094,2]
[334950854,1723669847313,-151.0,0.00014094,2]
[334950856,1723669847322,-211.08842,0.00014094,2]
[334950858,1723669847332,-1492.587303,0.00014094,2]
[334950860,1723669847341,-1492.587303,0.00014094,2]
[334950862,1723669847351,-151.0,0.00014094,2]
[334950864,1723669847361,-151.0,0.00014094,2]
[334950866,1723669847370,-252.298431,0.00014094,2]
[334950868,1723669847379,-252.298431,0.00014094,2]
[334950870,1723669847389,-476.086178,0.00014094,2]
[334950872,1723669847399,-476.086178,0.00014094,2]
[334950874,1723669847408,-10000.0,0.00014094,2]
[334950876,1723669847417,-10000.0,0.00014094,2]
[334950878,1723669847427,-10000.0,0.00014094,2]
[334950880,1723669847436,-151.0,0.00014094,2]
[334950882,1723669847446,-10000.0,0.00014094,2]
[334950884,1723669847455,-475.074164,0.00014094,2]
[334950886,1723669847468,-475.074164,0.00014094,2]
[334950888,1723669847477,-151.0,0.00014094,2]
[334950890,1723669847487,-151.0,0.00014094,2]
[334950892,1723669847496,-243.25458866,0.00014104,2]
[334950893,1723669847506,-151.0,0.00014111,2]
[334950895,1723669847516,-151.0,0.00014111,2]
[334950897,1723669847525,-275.295963,0.00014111,2]
[334950899,1723669847535,-151.0,0.00014121,2]
[334950901,1723669847545,-151.0,0.00014121,2]
[334950903,1723669847556,-151.0,0.00014121,2]
[334950905,1723669847566,-151.0,0.00014121,2]
[334950907,1723669847576,-151.0,0.00014121,2]
[334950909,1723669847585,-179.62485198,0.00014146,2]
[334950911,1723669847596,-185.64837153,0.00014146,2]
[334950913,1723669847605,-8446.88717965,0.00014206,2]
[334950915,1723669847614,-8446.88717965,0.00014216,2]
[334950917,1723669847624,-59128.2102576,0.00014226,2]
[334950919,1723669847633,-467.627424,0.00014226,2]
[334950920,1723669847642,-467.627424,0.00014226,2]
[334950922,1723669847653,-380.807606,0.00014226,2]
[334950924,1723669847663,-380.807606,0.00014226,2]
[334950926,1723669847674,-476.997783,0.00014226,2]
[334950928,1723669847683,-476.997783,0.00014226,2]
[334950930,1723669847692,-151.0,0.00014226,2]
[334950932,1723669847702,-151.0,0.00014226,2]
[334950934,1723669847711,-151.0,0.00014226,2]
[334950936,1723669847720,-151.0,0.00014226,2]
[334950938,1723669847730,-151.0,0.00014226,2]
[334950950,1723669847835,-752.389905,0.00014226,2]
[334950952,1723669847845,-151.0,0.00014226,2]
[334950954,1723669847855,-315.45522681,0.00014226,2]
[334950956,1723669847867,-436.93467819,0.00014226,2]
[334950958,1723669847876,-151.0,0.00014226,2]
[334950960,1723669847885,-151.0,0.00014226,2]
[334950962,1723669847894,-324.367052,0.00014226,2]
[334950964,1723669847903,-162.63474511,0.00014226,2]
[334950966,1723669847915,-161.73230689,0.00014226,2]
[334950968,1723669847924,-151.0,0.00014226,2]
[334950970,1723669847934,-151.0,0.00014226,2]
[334950972,1723669847946,-333.962182,0.00014226,2]
[334950974,1723669847956,-333.962182,0.00014226,2]
[334950976,1723669847968,-151.0,0.00014226,2]
[334950979,1723669847979,-265.68640513,0.00014226,2]
[334950981,1723669847990,-128.46781287,0.00014226,2]
[334950983,1723669848000,-151.0,0.00014226,2]
[334950985,1723669848009,-230.27079404,0.00014226,2]
[334950987,1723669848021,-163.88342396,0.00014226,2]
[334950989,1723669848030,-151.0,0.00014226,2]
[334950991,1723669848039,-198.385566,0.00014226,2]
[334950993,1723669848049,-135.75101004,0.00014226,2]
[334950995,1723669848060,-62.63455596,0.00014226,2]
[334950997,1723669848069,-151.0,0.00014226,2]
[334950999,1723669848079,-151.0,0.00014226,2]
[334951001,1723669848089,-151.0,0.00014226,2]
[334951003,1723669848098,-384.559042,0.00014226,2]
[334951005,1723669848107,-151.0,0.00014226,2]
[334951007,1723669848116,-384.559042,0.00014226,2]
[334951008,1723669848125,-1855.63801372,0.00014226,2]
[334951011,1723669848136,-210.87901928,0.00014226,2]
[334951013,1723669848147,-372.339468,0.00014226,2]
[334951015,1723669848156,-2066.517033,0.00014226,2]
[334951017,1723669848165,-372.339468,0.00014226,2]
[334951019,1723669848174,-283.517932,0.00014226,2]
[334951021,1723669848184,-283.517932,0.00014226,2]
[334951022,1723669848194,-3854.115604,0.00014226,2]
[334951024,1723669848203,-947.72066533,0.00014226,2]
[334951027,1723669848215,-1753.74598499,0.00014226,2]
[334951031,1723669848245,-1092.27862809,0.00014025,2]
[334951033,1723669848256,-546.97929801,0.00014025,2]
[334951035,1723669848267,-62.7543799,0.00014025,2]
[334951037,1723669848277,-403.63581627,0.00014226,2]
[334951039,1723669848288,-749.01313741,0.00014226,2]
[334951041,1723669848297,-618.58061777,0.00014235,2]
[334951043,1723669848312,-2409.35153101,0.00014235,2]
[334951046,1723669848327,-392.85540526,0.00014235,2]
[334951048,1723669848342,-644.10641409,0.00014235,2]
[334951050,1723669848353,-618.54331886,0.00014235,2]
[334951060,1723669848439,-478.6711612,0.00012542,2]
[334951062,1723669848451,-597.3288388,0.00012542,2]
[334951064,1723669848465,-1702.012306,0.00014226,2]
[334951066,1723669848475,-125.70845003,0.00014235,2]
[334951069,1723669848486,-3401.48620004,0.00014235,2]
[334951071,1723669848498,-236.25524259,0.00014235,2]
[334951073,1723669848507,-391.33889619,0.00014235,2]
[334951075,1723669848519,-108.66110381,0.00014235,2]
[334951077,1723669848529,-631.16,0.00014235,2]
[334951079,1723669848538,-61.0793761,0.00014235,2]
[334951081,1723669848550,-778.84,0.00014235,2]
[334951083,1723669848563,-1729.1906239,0.00014235,2]
[334951085,1723669848572,-219.266712,0.00014236,2]
[334951087,1723669848581,-19.94364682,0.00014236,2]
[334951090,1723669848594,-199.32306518,0.00014236,2]
[334951092,1723669848603,-165.124651,0.00014236,2]
[334951094,1723669848613,-165.124651,0.00014236,2]
[334951096,1723669848622,-169.031295,0.00014236,2]
[334951098,1723669848631,-169.031295,0.00014236,2]
[334951099,1723669848642,-2.31875187,0.00014236,2]
[334951157,1723669849224,-239.17,0.00013688,2]
[334951159,1723669849234,-124.50848363,0.00013688,2]
[334951161,1723669849245,-114.66151637,0.00013688,2]
[334951163,1723669849254,-239.17,0.00013688,2]
[334951164,1723669849264,-63.64064363,0.00013688,2]
[334951165,1723669849284,-175.52935637,0.00013688,2]
[334951166,1723669849293,-237.58984363,0.00013688,2]
[334951167,1723669849307,-1.58015637,0.00013688,2]
[334951168,1723669849316,-239.17,0.00013688,2]
[334951169,1723669849326,-239.17,0.00013688,2]
[334951170,1723669849335,-239.17,0.00013688,2]
[334951171,1723669849346,-239.17,0.00013688,2]
[334951172,1723669849355,-239.17,0.00013688,2]
[334951173,1723669849365,-1702.012306,0.00013972,2]
[334951174,1723669849375,-1702.012306,0.00014025,2]
[334951175,1723669849385,-1702.012306,0.00014226,2]
[334951177,1723669849394,-236.99021713,0.00014236,2]
[334951178,1723669849404,-239.308969,0.00014236,2]
[334951180,1723669849413,-151.0,0.00014236,2]
[334951182,1723669849423,-151.0,0.00014236,2]
[334951184,1723669849432,-151.0,0.00014236,2]
[334951186,1723669849442,-151.0,0.00014236,2]
[334951188,1723669849452,-151.0,0.00014236,2]
[334951190,1723669849466,-151.0,0.00014236,2]
[334951192,1723669849476,-151.0,0.00014236,2]
[334951193,1723669849485,-151.0,0.00014236,2]
[334951195,1723669849494,-151.0,0.00014236,2]
[334951197,1723669849505,-151.0,0.00014236,2]
[334951199,1723669849514,-206.744811,0.00014236,2]
[334951201,1723669849524,-988.670749,0.00014236,2]
[334951203,1723669849533,-151.0,0.00014236,2]
[334951205,1723669849543,-988.670749,0.00014236,2]
[334951207,1723669849553,-521.236744,0.00014236,2]
[334951209,1723669849562,-521.236744,0.00014236,2]
[334951211,1723669849571,-151.0,0.00014236,2]
[334951213,1723669849580,-151.0,0.00014236,2]
[334951215,1723669849590,-151.0,0.00014236,2]
[334951217,1723669849600,-456.900822,0.00014236,2]
[334951219,1723669849609,-456.900822,0.00014236,2]
[334951221,1723669849618,-151.0,0.00014236,2]
[334951223,1723669849630,-199.042961,0.00014236,2]
[334951225,1723669849640,-199.042961,0.00014236,2]
[334951227,1723669849649,-209.063682,0.00014236,2]
[334951229,1723669849658,-209.063682,0.00014236,2]
[334951231,1723669849668,-423.799009,0.00014236,2]
[334951233,1723669849677,-423.799009,0.00014236,2]
[334951235,1723669849687,-1515.607436,0.00014236,2]
[334951237,1723669849696,-1515.607436,0.00014236,2]
[334951239,1723669849705,-151.0,0.00014236,2]
[334951241,1723669849715,-151.0,0.00014236,2]
[334951243,1723669849724,-467.627424,0.00014236,2]
[334951245,1723669849733,-467.627424,0.00014236,2]
[334951246,1723669849743,-1342.759019,0.00014236,2]
[334951248,1723669849752,-1342.759019,0.00014236,2]
[334951250,1723669849761,-170.263249,0.00014236,2]
[334951252,1723669849770,-170.263249,0.00014236,2]
[334951254,1723669849780,-151.0,0.00014236,2]
[334951256,1723669849789,-366.020526,0.00014236,2]
[334951258,1723669849799,-170.263249,0.00014236,2]
[334951261,1723669849820,-170.263249,0.00014236,2]
[334951263,1723669849835,-366.020526,0.00014236,2]
[334951266,1723669849853,-380.807606,0.00014236,2]
[334951269,1723669849871,-380.807606,0.00014236,2]
[334951271,1723669849888,-557.46638,0.00014236,2]
[334951274,1723669849904,-557.46638,0.00014236,2]
[334951276,1723669849921,-151.0,0.00014236,2]
[334951279,1723669849935,-355.637819,0.00014236,2]
[334951281,1723669849950,-355.637819,0.00014236,2]
[334951284,1723669849968,-151.0,0.00014236,2]
[334951287,1723669849987,-537.200343,0.00014236,2]
[334951289,1723669850003,-537.200343,0.00014236,2]
[334951292,1723669850014,-257.472662,0.00014236,2]
[334951295,1723669850031,-257.472662,0.00014236,2]
[334951297,1723669850044,-1362.118776,0.00014236,2]
[334951300,1723669850062,-1362.118776,0.00014236,2]
[334951302,1723669850075,-2690.457512,0.00014236,2]
[334951305,1723669850087,-2690.457512,0.00014236,2]
[334951307,1723669850103,-181.617813,0.00014236,2]
[334951310,1723669850118,-181.617813,0.00014236,2]
[334951312,1723669850131,-743.794367,0.00014236,2]
[334951315,1723669850145,-743.794367,0.00014236,2]
[334951317,1723669850160,-365.112916,0.00014236,2]
[334951320,1723669850173,-365.112916,0.00014236,2]
[334951322,1723669850187,-152.601378,0.00014236,2]
[334951325,1723669850201,-151.0,0.00014236,2]
[334951327,1723669850215,-1678.004423,0.00014236,2]
[334951329,1723669850230,-1678.004423,0.00014236,2]
[334951332,1723669850244,-205.65466,0.00014236,2]
[334951334,1723669850259,-273.624296,0.00014236,2]
[334951337,1723669850274,-205.65466,0.00014236,2]
[334951340,1723669850289,-215.020153,0.00014236,2]
[334951342,1723669850304,-273.624296,0.00014236,2]
[334951345,1723669850318,-215.020153,0.00014236,2]
[334951347,1723669850332,-384.690137,0.00014236,2]
[334951349,1723669850346,-384.690137,0.00014236,2]
[334951352,1723669850361,-2144.199459,0.00014236,2]
[334951354,1723669850376,-2144.199459,0.00014236,2]
[334951356,1723669850391,-392.045528,0.00014236,2]
[334951358,1723669850406,-392.045528,0.00014236,2]
[334951360,1723669850421,-3705.435311,0.00014236,2]